fUSD/lending_fUSD_20240521
["ID","MTS","AMOUNT","RATE_DAILY","PERIOD"]
[327672972,1716306631919,-210.0,0.00017588,2]
[327672973,1716306631929,-530.41,0.00018264,2]
[327672974,1716306631939,-200.0,0.00019043,2]
[327672975,1716306631949,-250.0,0.00019083,2]
[327672976,1716306631958,-500.0,0.00019123,2]
[327672977,1716306631968,-263.78,0.00019132,3]
[327672978,1716306631982,-23900.0,0.00019142,2]
[327672979,1716306631991,-175.98,0.00019261,2]
[327672980,1716306632002,-423.50395095,0.00019346,2]
[327672981,1716306632011,-293.0,0.00019347,2]
[327672982,1716306632021,-708.32652841,0.00019724,2]
[327672983,1716306632031,-250.31322751,0.00019724,2]
[327672984,1716306632041,-657.70960259,0.00019724,2]
[327672985,1716306632051,-294.81815031,0.00019724,2]
[327672986,1716306632060,-268.32530534,0.00019725,2]
[327672987,1716306632070,-30685.10981485,0.000199,3]
[327672988,1716306632080,-150.0,0.00019935,2]
[327672989,1716306632089,-4031.1,0.00019956,2]
[327672990,1716306632099,-4802.19535607,0.0002,4]
[327672991,1716306632108,-316.66,0.00020092,2]
[327672992,1716306632118,-160.18,0.00020141,2]
[327672993,1716306632127,-250.0,0.00020221,2]
[327672994,1716306632137,-169.87,0.00020252,2]
[327672995,1716306632147,-1752.9,0.00020261,2]
[327672996,1716306632156,-153.02,0.00020261,2]
[327672997,1716306632166,-153.02,0.00020278,2]
[327672998,1716306632175,-153.02,0.00020295,2]
[327672999,1716306632184,-153.02,0.00020312,2]
[327673000,1716306632194,-153.02,0.00020329,2]
[327673001,1716306632203,-153.02,0.00020346,2]
[327673002,1716306632212,-153.02,0.00020363,2]
[327673003,1716306632222,-1913.89,0.00020413,2]
[327673004,1716306632234,-530.41,0.00020527,2]
[327673005,1716306632242,-411.0,0.00021281,2]
[327673006,1716306632251,-169.87,0.00021308,2]
[327673007,1716306632260,-2628.61273583,0.00021496,2]
[327673008,1716306632269,-1452.96436138,0.00021497,2]
[327673010,1716306632278,-3656.9277328,0.00021497,2]
[327673012,1716306632288,-7848.21012,0.00021498,2]
[327673014,1716306632302,-172.96207992,0.00022679,2]
[327673016,1716306632310,-530.41,0.00022791,2]
[327673018,1716306632320,-1752.9,0.00023001,2]
[327673019,1716306632329,-4845.424123,0.00024,3]
[327673021,1716306632338,-1000.0,0.00024519,2]
[327673023,1716306632347,-5079.69634499,0.00024597,2]
[327673025,1716306632357,-250.0,0.00024658,2]
[327673027,1716306632366,-7632.56124748,0.00024889,2]
[327673029,1716306632375,-171.03,0.00024893,2]
[327673031,1716306632384,-4766.84367226,0.00024896,2]
[327673035,1716306632409,-1262.01416613,0.00024896,2]
[327673037,1716306632419,-1146.45785843,0.00024897,2]
[327673039,1716306632430,-420.0,0.00024897,2]
[327673042,1716306632495,-333.00794755,0.00024897,2]
[327673043,1716306632530,-544.02,0.00024897,2]
[327673044,1716306632541,-2536.38561846,0.00024897,2]
[327673045,1716306632551,-5160.62713521,0.00024898,2]
[327673046,1716306632614,-615.25441392,0.00024898,2]
[327673047,1716306632801,-334.0,0.00024898,2]
[327673048,1716306632813,-8404.48,0.00024898,2]
[327673070,1716306637955,-240.68,0.00024888,3]
[327673071,1716306637965,-760.54050053,0.00024898,2]
[327673072,1716306637981,-1041.0962332,0.00024898,2]
[327673073,1716306637994,-374.17007584,0.00024898,2]
[327673074,1716306638007,-7011.3,0.00024898,2]
[327673075,1716306638025,-15640.24476262,0.00024898,2]
[327673076,1716306638037,-39341.71312132,0.00024898,2]
[327673077,1716306638050,-14309.43408144,0.00024898,2]
[327673078,1716306638083,-14014.0,0.00024898,2]
[327673084,1716306638296,-2818.09107898,0.00024898,2]
[327673104,1716306643353,-154.13103881,0.000169,2]
[327673105,1716306643363,-541.03648628,0.00017259,2]
[327673106,1716306643373,-2804.83247491,0.00024898,2]
[327673107,1716306643384,-5395.35548599,0.00024898,2]
[327673108,1716306643393,-19351.99496886,0.00024898,2]
[327673109,1716306643408,-2398.99460939,0.00024898,2]
[327673110,1716306643419,-802.33368668,0.00024898,2]
[327673111,1716306643431,-16733.35059698,0.00024898,2]
[327673112,1716306643443,-55.03925941,0.00024898,2]
[327673113,1716306643452,-530.41,0.00025055,2]
[327673114,1716306643462,-1000.0,0.00025286,2]
[327673115,1716306643471,-1752.9,0.00025741,2]
[327673116,1716306643481,-7632.5612474,0.0002592,2]
[327673117,1716306643494,-3662.0,0.00026,3]
[327673118,1716306643504,-481.36,0.00026258,3]
[327673119,1716306643514,-39341.71312132,0.00026542,2]
[327673120,1716306643523,-11716.0,0.000267,5]
[327673121,1716306643533,-175.98,0.00026966,2]
[327673122,1716306643543,-7632.5612474,0.00027043,2]
[327673123,1716306643552,-530.41,0.00027319,2]
[327673124,1716306643562,-1115.85,0.00027397,2]
[327673125,1716306643571,-319.38,0.000274,2]
[327673126,1716306643580,-157.39320296,0.00027419,2]
[327673127,1716306643590,-7632.5612474,0.00028165,2]
[327673128,1716306643601,-39341.71312132,0.00028214,2]
[327673129,1716306643610,-319.38,0.0002899,2]
[327673130,1716306643620,-423.94616487,0.00029,2]
[327673131,1716306643632,-112158.0972178,0.00029,2]
[327673132,1716306643646,-339.94221041,0.00029099,2]
[327673134,1716306643655,-69871.83513202,0.00029199,2]
[327673135,1716306643665,-1000.0,0.00029582,2]
[327673137,1716306643674,-530.41,0.00029583,2]
[327673140,1716306643684,-1000.0,0.00029714,2]
[327673141,1716306643694,-163.18099657,0.00029875,2]
[327673144,1716306643703,-39341.71312132,0.00029885,2]
[327673146,1716306643714,-310.0,0.0003,3]
[327673148,1716306643724,-160.18,0.00030211,120]
[327673150,1716306643735,-1265.52863748,0.00031467,2]
[327673151,1716306643744,-319.38,0.00031547,2]
[327673152,1716306643753,-39341.71312132,0.00031557,2]
[327673153,1716306643763,-172.28,0.00031619,2]
[327673154,1716306643772,-150.0,0.00031698,2]
[327673155,1716306643781,-530.41,0.00031847,2]
[327673156,1716306643791,-150.0,0.00031879,2]
[327673157,1716306643800,-1265.52863744,0.00031931,2]
[327673158,1716306643810,-184.00534439,0.00032246,7]
[327673161,1716306643819,-1265.52863744,0.00032396,2]
[327673164,1716306643828,-150.0,0.00032434,2]
[327673166,1716306643839,-208.00558033,0.00032479,2]
[327673169,1716306643848,-150.0,0.00032595,2]
[327673172,1716306643857,-700.0,0.000326,11]
[327673175,1716306643867,-150.0,0.00032681,2]
[327673177,1716306643876,-1400.0,0.000327,11]
[327673180,1716306643886,-7500.0,0.00032776,2]
[327673181,1716306643896,-13643.84505244,0.00032776,4]
[327673183,1716306643907,-165.4292042,0.00032776,4]
[327673186,1716306643917,-195.92344363,0.00032776,6]
[327673188,1716306643927,-1157.57464056,0.000328,11]
[327673190,1716306643939,-942.42535944,0.000328,11]
[327673192,1716306643948,-150.0,0.00032853,2]
[327673194,1716306643958,-1014.44464056,0.0003286,2]
[327673197,1716306643978,-251.08399688,0.0003286,2]
[327673199,1716306643990,-150.66,0.00032865,2]
[327673201,1716306643999,-319.38,0.00032865,2]
[327673203,1716306644009,-150.66,0.00032866,2]
[327673205,1716306644018,-319.38,0.00032866,2]
[327673207,1716306644028,-693.34534165,0.00032874,4]
[327673209,1716306644039,-192.33680675,0.00032874,4]
[327673211,1716306644048,-87.62319325,0.00032874,4]
[327673214,1716306644064,-194.19155069,0.00032874,4]
[327673216,1716306644074,-529.06734071,0.00032874,4]
[327673218,1716306644084,-204.59618356,0.00032874,10]
[327673220,1716306644094,-204.80318837,0.00032874,4]
[327673222,1716306644103,-2141.00064411,0.00032875,4]
[327673224,1716306644114,-236.7907629,0.00032876,31]
[327673226,1716306644124,-416.17960523,0.00032876,31]
[327673228,1716306644133,-500.0,0.00032876,6]
[327673229,1716306644143,-500.0,0.00032876,6]
[327673230,1716306644152,-440.26034068,0.00032876,6]
[327673231,1716306644161,-507.75383621,0.00032876,10]
[327673232,1716306644170,-500.0,0.00032876,6]
[327673233,1716306644179,-500.0,0.00032876,6]
[327673234,1716306644189,-526.085396,0.00032876,6]
[327673235,1716306644198,-500.0,0.00032876,6]
[327673236,1716306644207,-500.0,0.00032876,6]
[327673237,1716306644217,-514.02167389,0.00032876,6]
[327673238,1716306644226,-500.0,0.00032876,6]
[327673239,1716306644238,-500.0,0.00032876,6]
[327673241,1716306644247,-716.87,0.00032876,6]
[327673243,1716306644256,-500.0,0.00032876,6]
[327673244,1716306644265,-500.0,0.00032876,6]
[327673246,1716306644275,-500.0,0.00032876,6]
[327673248,1716306644284,-500.0,0.00032876,6]
[327673251,1716306644295,-673.58,0.00032876,6]
[327673253,1716306644305,-500.0,0.00032876,6]
[327673255,1716306644315,-595.40861442,0.00032876,6]
[327673257,1716306644325,-500.0,0.00032876,6]
[327673259,1716306644334,-500.0,0.00032876,6]
[327673260,1716306644344,-573.01448172,0.00032876,6]
[327673263,1716306644353,-500.0,0.00032876,6]
[327673265,1716306644363,-500.0,0.00032876,6]
[327673267,1716306644376,-502.59922283,0.00032876,2]
[327673269,1716306644388,-508.06286393,0.00032876,6]
[327673271,1716306644403,-500.0,0.00032876,6]
[327673273,1716306644413,-514.43862727,0.00032876,6]
[327673274,1716306644423,-500.0,0.00032876,6]
[327673277,1716306644432,-500.0,0.00032876,6]
[327673278,1716306644442,-500.0,0.00032876,6]
[327673280,1716306644452,-532.57084543,0.00032876,6]
[327673282,1716306644462,-627.28,0.00032876,6]
[327673283,1716306644472,-521.02351845,0.00032876,6]
[327673285,1716306644485,-671.98,0.00032876,6]
[327673287,1716306644495,-522.59695139,0.00032876,6]
[327673289,1716306644505,-522.57572468,0.00032876,6]
[327673291,1716306644513,-500.0,0.00032876,6]
[327673293,1716306644523,-512.75426022,0.00032876,6]
[327673295,1716306644532,-507.67063295,0.00032876,6]
[327673297,1716306644541,-500.0,0.00032876,6]
[327673299,1716306644551,-500.0,0.00032876,6]
[327673301,1716306644561,-531.38625742,0.00032876,6]
[327673303,1716306644570,-500.0,0.00032876,6]
[327673305,1716306644579,-500.0,0.00032876,6]
[327673307,1716306644590,-557.46870776,0.00032876,6]
[327673309,1716306644601,-752.31,0.00032876,6]
[327673311,1716306644610,-500.0,0.00032876,6]
[327673313,1716306644620,-639.71750312,0.00032876,6]
[327673315,1716306644631,-500.0,0.00032876,6]
[327673317,1716306644642,-500.0,0.00032876,6]
[327673319,1716306644651,-500.0,0.00032876,6]
[327673321,1716306644661,-500.0,0.00032876,6]
[327673322,1716306644671,-500.0,0.00032876,6]
[327673323,1716306644681,-522.90181057,0.00032876,6]
[327673325,1716306644692,-519.5014043,0.00032876,6]
[327673327,1716306644702,-500.0,0.00032876,6]
[327673329,1716306644714,-534.76,0.00032876,6]
[327673331,1716306644724,-500.0,0.00032876,6]
[327673334,1716306644737,-500.0,0.00032876,6]
[327673335,1716306644747,-500.0,0.00032876,6]
[327673338,1716306644757,-500.0,0.00032876,6]
[327673339,1716306644766,-654.11,0.00032876,6]
[327673341,1716306644776,-500.0,0.00032876,6]
[327673344,1716306644786,-603.53,0.00032876,6]
[327673346,1716306644796,-500.0,0.00032876,6]
[327673348,1716306644806,-500.0,0.00032876,6]
[327673350,1716306644816,-500.0,0.00032876,6]
[327673351,1716306644826,-500.0,0.00032876,6]
[327673353,1716306644836,-500.0,0.00032876,6]
[327673355,1716306644845,-500.0,0.00032876,6]
[327673357,1716306644854,-500.0,0.00032876,6]
[327673359,1716306644864,-1296.55,0.00032876,6]
[327673361,1716306644874,-369.19191522,0.00032876,6]
[327673363,1716306644884,-500.0,0.00032876,6]
[327673366,1716306644894,-500.0,0.00032876,6]
[327673368,1716306644904,-500.0,0.00032876,6]
[327673369,1716306644913,-538.29891629,0.00032876,6]
[327673371,1716306644922,-581.96,0.00032876,6]
[327673374,1716306644932,-826.41,0.00032876,6]
[327673375,1716306644941,-500.0,0.00032876,6]
[327673377,1716306644951,-500.0,0.00032876,6]
[327673380,1716306644961,-500.0,0.00032876,6]
[327673382,1716306644970,-500.0,0.00032876,6]
[327673384,1716306644981,-500.0,0.00032876,6]
[327673386,1716306644994,-439.83790936,0.00032876,6]
[327673387,1716306645003,-500.0,0.00032876,6]
[327673389,1716306645013,-505.77132853,0.00032876,6]
[327673391,1716306645022,-525.51491967,0.00032876,6]
[327673393,1716306645031,-500.0,0.00032876,6]
[327673395,1716306645041,-500.0,0.00032876,6]
[327673397,1716306645050,-500.0,0.00032876,6]
[327673400,1716306645060,-500.0,0.00032876,6]
[327673401,1716306645070,-500.0,0.00032876,6]
[327673403,1716306645079,-500.0,0.00032876,6]
[327673405,1716306645089,-500.0,0.00032876,6]
[327673407,1716306645099,-500.0,0.00032876,6]
[327673409,1716306645108,-500.0,0.00032876,6]
[327673411,1716306645118,-500.0,0.00032876,6]
[327673414,1716306645127,-500.0,0.00032876,6]
[327673416,1716306645137,-500.0,0.00032876,6]
[327673418,1716306645146,-518.79095781,0.00032876,6]
[327673420,1716306645156,-532.54,0.00032876,6]
[327673422,1716306645165,-500.0,0.00032876,6]
[327673424,1716306645175,-530.93755946,0.00032876,6]
[327673426,1716306645185,-500.0,0.00032876,6]
[327673428,1716306645195,-725.57,0.00032876,6]
[327673430,1716306645205,-500.0,0.00032876,6]
[327673432,1716306645214,-500.0,0.00032876,6]
[327673434,1716306645224,-500.0,0.00032876,6]
[327673436,1716306645235,-500.0,0.00032876,6]
[327673437,1716306645244,-500.0,0.00032876,6]
[327673440,1716306645254,-500.0,0.00032876,6]
[327673441,1716306645264,-500.0,0.00032876,6]
[327673443,1716306645273,-583.64,0.00032876,6]
[327673446,1716306645282,-602.33,0.00032876,6]
[327673448,1716306645292,-608.85218701,0.00032876,6]
[327673450,1716306645302,-500.0,0.00032876,6]
[327673452,1716306645312,-91.45090301,0.00032876,6]
[327673493,1716306645684,-140.5487961,0.00032876,6]
[327673495,1716306645694,-258.61585837,0.00032876,6]
[327673498,1716306645709,-241.38414163,0.00032876,6]
[327673500,1716306645719,-500.0,0.00032876,6]
[327673502,1716306645729,-500.0,0.00032876,6]
[327673506,1716306645742,-500.0,0.00032876,6]
[327673508,1716306645752,-500.0,0.00032876,6]
[327673512,1716306645761,-500.0,0.00032876,6]
[327673515,1716306645771,-602.22,0.00032876,6]
[327673518,1716306645781,-500.0,0.00032876,6]
[327673520,1716306645791,-527.16150223,0.00032876,6]
[327673539,1716306646012,-214.73435584,0.00032876,6]
[327673560,1716306646218,-285.26564416,0.00032876,6]
[327673562,1716306646227,-633.52,0.00032876,6]
[327673564,1716306646240,-500.0,0.00032876,6]
[327673566,1716306646249,-500.0,0.00032876,6]
[327673568,1716306646258,-500.0,0.00032876,6]
[327673570,1716306646268,-176.94819805,0.00032876,6]
[327673573,1716306646280,-323.05180195,0.00032876,6]
[327673575,1716306646289,-500.0,0.00032876,6]
[327673577,1716306646299,-831.53,0.00032876,6]
[327673579,1716306646308,-548.19143728,0.00032876,6]
[327673581,1716306646318,-353.12893044,0.00032876,6]
[327673583,1716306646327,-327.15679405,0.00032876,6]
[327673585,1716306646339,-172.84320595,0.00032876,6]
[327673587,1716306646348,-500.0,0.00032876,6]
[327673589,1716306646358,-273.14616846,0.00032876,6]
[327673591,1716306646369,-226.85383154,0.00032876,6]
[327673593,1716306646378,-500.0,0.00032876,6]
[327673595,1716306646387,-500.0,0.00032876,6]
[327673597,1716306646397,-500.0,0.00032876,6]
[327673599,1716306646407,-500.0,0.00032876,6]
[327673601,1716306646416,-500.0,0.00032876,6]
[327673603,1716306646426,-500.0,0.00032876,6]
[327673605,1716306646435,-873.67,0.00032876,6]
[327673607,1716306646445,-500.0,0.00032876,6]
[327673609,1716306646454,-500.0,0.00032876,6]
[327673611,1716306646464,-652.7,0.00032876,6]
[327673614,1716306646474,-240.51696792,0.00032876,6]
[327673653,1716306647214,-6545.359872,0.00029288,2]
[327673654,1716306647230,-1087.2013754,0.00029288,2]
[327673655,1716306647244,-898.06483857,0.00032659,2]
[327673656,1716306647253,-5832.9197027,0.00032874,4]
[327673657,1716306647264,-1514.55494908,0.00032874,4]
[327673658,1716306647274,-259.48303208,0.00032876,6]
[327673659,1716306647283,-510.78364686,0.00032876,6]
[327673660,1716306647293,-500.0,0.00032876,6]
[327673661,1716306647302,-500.0,0.00032876,6]
[327673662,1716306647312,-503.29552828,0.00032876,6]
[327673663,1716306647322,-1021.23,0.00032876,6]
[327673664,1716306647333,-500.0,0.00032876,6]
[327673665,1716306647343,-500.0,0.00032876,6]
[327673666,1716306647352,-550.47454139,0.00032876,6]
[327673667,1716306647362,-500.0,0.00032876,6]
[327673668,1716306647372,-525.63272748,0.00032876,6]
[327673669,1716306647382,-500.0,0.00032876,6]
[327673670,1716306647392,-500.0,0.00032876,6]
[327673671,1716306647401,-518.67007185,0.00032876,6]
[327673672,1716306647411,-500.0,0.00032876,6]
[327673673,1716306647420,-500.0,0.00032876,6]
[327673674,1716306647430,-500.0,0.00032876,6]
[327673675,1716306647440,-500.0,0.00032876,6]
[327673676,1716306647450,-506.46154333,0.00032876,6]
[327673677,1716306647459,-500.0,0.00032876,6]
[327673678,1716306647469,-1209.4,0.00032876,6]
[327673679,1716306647479,-500.0,0.00032876,6]
[327673680,1716306647491,-500.0,0.00032876,6]
[327673681,1716306647501,-500.0,0.00032876,6]
[327673682,1716306647511,-500.0,0.00032876,6]
[327673683,1716306647520,-500.0,0.00032876,6]
[327673684,1716306647530,-1258.95,0.00032876,6]
[327673685,1716306647540,-500.0,0.00032876,6]
[327673686,1716306647549,-500.0,0.00032876,6]
[327673687,1716306647559,-500.0,0.00032876,6]
[327673688,1716306647569,-500.0,0.00032876,6]
[327673689,1716306647585,-500.0,0.00032876,6]
[327673690,1716306647596,-500.0,0.00032876,6]
[327673691,1716306647607,-500.0,0.00032876,6]
[327673692,1716306647617,-500.0,0.00032876,6]
[327673693,1716306647627,-500.0,0.00032876,6]
[327673694,1716306647639,-512.07972429,0.00032876,6]
[327673695,1716306647650,-500.0,0.00032876,6]
[327673696,1716306647661,-507.13064431,0.00032876,6]
[327673697,1716306647678,-500.0,0.00032876,6]
[327673698,1716306647688,-559.94,0.00032876,6]
[327673699,1716306647698,-500.0,0.00032876,30]
[327673700,1716306647709,-513.7797109,0.00032876,6]
[327673701,1716306647719,-500.0,0.00032876,6]
[327673702,1716306647729,-505.83492892,0.00032876,6]
[327673703,1716306647742,-500.0,0.00032876,6]
[327673704,1716306647752,-500.0,0.00032876,6]
[327673705,1716306647762,-500.0,0.00032876,6]
[327673706,1716306647772,-500.0,0.00032876,6]
[327673707,1716306647781,-500.0,0.00032876,6]
[327673708,1716306647791,-500.0,0.00032876,6]
[327673709,1716306647800,-500.0,0.00032876,6]
[327673710,1716306647810,-500.0,0.00032876,6]
[327673711,1716306647820,-500.0,0.00032876,6]
[327673712,1716306647829,-516.17138536,0.00032876,6]
[327673713,1716306647839,-803.87,0.00032876,6]
[327673714,1716306647848,-500.0,0.00032876,6]
[327673715,1716306647858,-241.78347066,0.00032876,6]
[327673716,1716306647874,-265.92668259,0.00032876,6]
[327673717,1716306647884,-500.0,0.00032876,6]
[327673718,1716306647894,-506.29739305,0.00032876,6]
[327673719,1716306647903,-500.0,0.00032876,6]
[327673720,1716306647914,-500.0,0.00032876,6]
[327673722,1716306647923,-831.55,0.00032876,6]
[327673724,1716306647933,-501.812914,0.00032876,6]
[327673726,1716306647942,-500.0,0.00032876,6]
[327673728,1716306647952,-500.0,0.00032876,6]
[327673730,1716306647962,-500.0,0.00032876,6]
[327673732,1716306647971,-775.06,0.00032876,6]
[327673734,1716306647981,-500.0,0.00032876,6]
[327673735,1716306647993,-1243.2,0.00032876,6]
[327673736,1716306648003,-500.0,0.00032876,6]
[327673737,1716306648012,-500.0,0.00032876,6]
[327673738,1716306648022,-500.0,0.00032876,6]
[327673739,1716306648031,-500.0,0.00032876,6]
[327673740,1716306648040,-500.0,0.00032876,6]
[327673741,1716306648050,-500.0,0.00032876,6]
[327673742,1716306648061,-500.0,0.00032876,6]
[327673743,1716306648071,-500.0,0.00032876,6]
[327673744,1716306648081,-500.0,0.00032876,6]
[327673745,1716306648091,-627.09387811,0.00032876,6]
[327673746,1716306648101,-932.51,0.00032876,6]
[327673747,1716306648111,-559.48,0.00032876,6]
[327673748,1716306648121,-500.0,0.00032876,6]
[327673749,1716306648131,-500.0,0.00032876,6]
[327673750,1716306648141,-591.63,0.00032876,6]
[327673751,1716306648151,-500.0,0.00032876,6]
[327673752,1716306648161,-500.0,0.00032876,6]
[327673753,1716306648170,-500.0,0.00032876,6]
[327673754,1716306648180,-500.0,0.00032876,6]
[327673755,1716306648190,-500.0,0.00032876,2]
[327673756,1716306648199,-500.0,0.00032876,6]
[327673757,1716306648209,-500.0,0.00032876,6]
[327673758,1716306648218,-500.0,0.00032876,6]
[327673759,1716306648227,-500.0,0.00032876,6]
[327673760,1716306648239,-500.0,0.00032876,6]
[327673761,1716306648248,-671.66,0.00032876,6]
[327673762,1716306648258,-959.11,0.00032876,6]
[327673763,1716306648268,-500.0,0.00032876,6]
[327673764,1716306648277,-500.0,0.00032876,6]
[327673765,1716306648287,-1038.26,0.00032876,6]
[327673766,1716306648296,-500.0,0.00032876,6]
[327673767,1716306648306,-500.0,0.00032876,6]
[327673768,1716306648315,-500.0,0.00032876,6]
[327673769,1716306648324,-500.0,0.00032876,6]
[327673770,1716306648334,-500.0,0.00032876,6]
[327673771,1716306648343,-500.0,0.00032876,6]
[327673772,1716306648353,-500.0,0.00032876,6]
[327673773,1716306648362,-831.58,0.00032876,6]
[327673774,1716306648371,-731.69,0.00032876,6]
[327673775,1716306648381,-518.44365395,0.00032876,6]
[327673776,1716306648391,-500.0,0.00032876,6]
[327673777,1716306648451,-237.64135596,0.00032876,6]
[327673778,1716306648462,-502.93253712,0.00032876,6]
[327673779,1716306648471,-500.0,0.00032876,6]
[327673780,1716306648481,-509.93213775,0.00032876,6]
[327673781,1716306648493,-500.0,0.00032876,6]
[327673782,1716306648502,-526.45940487,0.00032876,6]
[327673783,1716306648513,-520.67878291,0.00032876,6]
[327673784,1716306648522,-500.0,0.00032876,6]
[327673785,1716306648531,-500.0,0.00032876,6]
[327673786,1716306648541,-500.0,0.00032876,6]
[327673787,1716306648550,-500.0,0.00032876,6]
[327673788,1716306648560,-516.47726152,0.00032876,6]
[327673789,1716306648570,-500.0,0.00032876,2]
[327673790,1716306648579,-500.0,0.00032876,6]
[327673791,1716306648589,-500.0,0.00032876,6]
[327673792,1716306648599,-500.0,0.00032876,6]
[327673793,1716306648609,-500.0,0.00032876,6]
[327673794,1716306648618,-457.47399817,0.00032876,6]
[327673795,1716306648845,-42.52600183,0.00032876,6]
[327673796,1716306648855,-500.0,0.00032876,6]
[327673797,1716306648864,-500.0,0.00032876,6]
[327673798,1716306648873,-725.8,0.00032876,6]
[327673799,1716306648882,-500.0,0.00032876,6]
[327673800,1716306648891,-541.36428083,0.00032876,6]
[327673801,1716306648900,-500.0,0.00032876,6]
[327673802,1716306648909,-500.0,0.00032876,6]
[327673803,1716306648918,-500.0,0.00032876,6]
[327673804,1716306648927,-2313.36,0.00032876,6]
[327673805,1716306648937,-500.0,0.00032876,6]
[327673806,1716306648947,-500.0,0.00032876,6]
[327673807,1716306648956,-500.0,0.00032876,6]
[327673808,1716306648966,-500.0,0.00032876,6]
[327673809,1716306648974,-500.0,0.00032876,6]
[327673810,1716306648985,-535.4311038,0.00032876,6]
[327673811,1716306648995,-597.19,0.00032876,6]
[327673812,1716306649005,-515.97,0.00032876,6]
[327673813,1716306649014,-725.99,0.00032876,6]
[327673814,1716306649023,-500.0,0.00032876,6]
[327673815,1716306649033,-1434.99,0.00032876,6]
[327673816,1716306649042,-500.0,0.00032876,6]
[327673817,1716306649051,-598.94,0.00032876,6]
[327673818,1716306649060,-500.0,0.00032876,6]
[327673819,1716306649070,-500.0,0.00032876,6]
[327673820,1716306649079,-1323.51,0.00032876,6]
[327673821,1716306649088,-125.65334916,0.00032876,6]
[327673822,1716306649105,-376.84269916,0.00032876,6]
[327673823,1716306649114,-507.05563422,0.00032876,6]
[327673824,1716306649123,-500.0,0.00032876,6]
[327673825,1716306649132,-500.0,0.00032876,6]
[327673826,1716306649141,-500.0,0.00032876,6]
[327673827,1716306649150,-500.0,0.00032876,6]
[327673828,1716306649160,-500.0,0.00032876,6]
[327673829,1716306649170,-500.0,0.00032876,6]
[327673830,1716306649179,-500.0,0.00032876,6]
[327673831,1716306649188,-2618.10166662,0.00032876,2]
[327673832,1716306649337,-2148.18177715,0.00032876,2]
[327673833,1716306649346,-502.22255041,0.00032876,6]
[327673834,1716306649355,-500.0,0.00032876,6]
[327673835,1716306649364,-500.0,0.00032876,6]
[327673836,1716306649373,-534.2324369,0.00032876,6]
[327673837,1716306649383,-1108.1,0.00032876,6]
[327673838,1716306649392,-779.92,0.00032876,6]
[327673839,1716306649402,-667.74,0.00032876,6]
[327673840,1716306649411,-801.65,0.00032876,6]
[327673841,1716306649420,-1565.95,0.00032876,6]
[327673842,1716306649430,-689.29,0.00032876,6]
[327673843,1716306649439,-532.34268292,0.00032876,6]
[327673844,1716306649448,-500.0,0.00032876,6]
[327673845,1716306649457,-423.0506053,0.00032876,6]
[327673846,1716306649466,-531.36249781,0.00032876,6]
[327673847,1716306649475,-500.0,0.00032876,6]
[327673848,1716306649487,-606.82,0.00032876,6]
[327673849,1716306649496,-529.91658594,0.00032876,6]
[327673850,1716306649505,-500.0,0.00032876,6]
[327673851,1716306649514,-500.0,0.00032876,6]
[327673852,1716306649523,-307.90221604,0.00032876,6]
[327673853,1716306649532,-582.34,0.00032876,6]
[327673854,1716306649541,-1262.88,0.00032876,6]
[327673855,1716306649550,-530.10778116,0.00032876,6]